Cogmind - Beta 10.2 @@@ ROGUE MODE // 2021.12.08 @ 21:14:39 Player: ChromeKnight Result: Self-destructed Performance ------------- Evolutions (2) 1000 Regions Visited (7) 1400 Robots Destroyed (21) 105 Value Destroyed (440) 440 Prototype IDs (23) 460 Alien Tech Used (0) 0 Bonus (321) 321 TOTAL SCORE: 3726 Bonus ------- Follower Combat Kills 21 Aligned with FarCom 300 Cogmind --------- Core Integrity 550/550 Matter 270/300 Energy 100/100 System Corruption 0% Temperature Cool (0) Movement Core (150) Ox2 Location -8/Materials Parts ------- > --- POWER (2) -------- (None) > --- PROPULSION (3) --- (None) > --- UTILITY (4) ------ Lightpack 2.0 Visual Processing Unit > --- WEAPON (2) ------- Pulse Rifle Mini Grenade Launcher > --- INVENTORY (24) --- Large Battery (300) Advanced Sensor Array Targeting Computer Targeting Computer Propulsion Shielding Shield Generator Peak State ------------ > --- POWER ------------ (None) > --- PROPULSION ------- (None) > --- UTILITY ---------- Lightpack 2.0 Visual Processing Unit > --- WEAPON ----------- Pulse Rifle Mini Grenade Launcher > --- INVENTORY -------- Large Battery Targeting Computer Targeting Computer Propulsion Shielding Shield Generator [Rating: 27] Favorites ----------- Power Light Ion Engine Engine Light Ion Engine Propulsion Aluminum Leg Leg Aluminum Leg Utility Small Storage Unit Device Heat Sink Storage Small Storage Unit Processor Visual Processing Unit Protection Propulsion Shielding Weapon Beam Rifle Energy Gun Beam Rifle Ballistic Gun Light Assault Rifle Launcher Mini Grenade Launcher Build | -11 -10 -10 -9 -9 -9 -8 -8 ------- Run | Scr Mat Min Mat Min Exi Min Mat Slots Evolved 4 | . . . 2 . . . 2 Power 1 | . . . 1 . . . . Propulsion 1 | . . . . . . . 1 Utility 2 | . . . 1 . . . 1 Weapon . | . . . . . . . . Parts Attached 40 | 6 4 7 12 7 1 2 1 Power 9 | 1 1 1 3 3 . . . Engine 9 | 1 1 1 3 3 . . . Core . | . . . . . . . . Reactor . | . . . . . . . . Propulsion 11 | 2 1 3 3 2 . . . Treads . | . . . . . . . . Leg 11 | 2 1 3 3 2 . . . Wheel . | . . . . . . . . Hover . | . . . . . . . . Flight . | . . . . . . . . Utility 9 | 1 1 1 4 . 1 . 1 Device 4 | . . 1 3 . . . . Storage 2 | 1 . . . . 1 . . Processor 2 | . . . 1 . . . 1 Hackware . | . . . . . . . . Protection 1 | . 1 . . . . . . Artifact . | . . . . . . . . Weapon 11 | 2 1 2 2 2 . 2 . Energy Gun 5 | . . 2 2 . . 1 . Energy Cannon . | . . . . . . . . Ballistic Gun 5 | 2 1 . . 2 . . . Ballistic Cannon . | . . . . . . . . Launcher 1 | . . . . . . 1 . Special Weapon . | . . . . . . . . Impact Weapon . | . . . . . . . . Slashing Weapon . | . . . . . . . . Piercing Weapon . | . . . . . . . . Special Melee Weapon . | . . . . . . . . Unidentified Prototypes . | . . . . . . . . Parts Lost 10 | . . 2 3 5 . . . Power 1 | . . 1 . . . . . Propulsion 1 | . . . . 1 . . . Utility 1 | . . . 1 . . . . Weapon 7 | . . 1 2 4 . . . Highest Loss Streak 3 | . . 2 3 2 . . . Average Slot Usage (%) 63 | . 89 87 91 68 8 26 35 Engine 8 | . 13 8 16 17 . . . Leg 15 | . 27 28 22 12 . . . Device 5 | . . 4 15 17 . . . Storage 11 | . 14 14 11 8 8 11 9 Processor 1 | . . . 4 . . . 8 Protection 3 | . 6 9 . . . . . Energy Gun 9 | . . 13 20 3 . 10 9 Ballistic Gun 6 | . 27 8 . 8 . . . Launcher 1 | . . . . . . 5 9 Naked Turns 115 | . . . . 56 59 . . Heaviest Build 20 | 11 12 14 20 18 5 9 9 Greatest Support 20 | 20 20 20 20 20 3 3 3 Greatest Overweight (x) 2 | . . . . 1 1 2 2 Average Overweight (x) . | . . . . . . 1 2 Largest Inventory Capacity 24 | 6 6 6 6 6 24 24 24 Average Capacity 11 | 5 6 6 6 5 18 24 24 Most Carried 6 | . 6 6 6 6 5 5 6 Average Carried 5 | . 4 5 5 5 4 5 5 Final Capacity 24 | 6 6 6 6 4 24 24 24 Final Carried 6 | . 6 6 6 4 5 5 6 Class Distribution -------------------- 49% | Mutant 31% | Hauler-Mutant 19% | Scavenger-Mutant Dominant Class ---------------- Mutant | -10/Materials Mutant | -10/Mines Scavenger-Mutant | -9/Materials Scavenger-Mutant | -9/Mines Hauler-Mutant | -9/Exiles Hauler-Mutant | -8/Mines Hauler-Mutant | -8/Materials Resources | -11 -10 -10 -9 -9 -9 -8 -8 ----------- Run | Scr Mat Min Mat Min Exi Min Mat Matter Collected 651 | 260 50 122 100 64 27 28 . Remotely . | . . . . . . . . Salvage Created 654 | . 117 282 190 65 . . . Parts 45 | . 14 13 9 9 . . . Haulers Intercepted 2 | . 2 . . . . . . Recyclers Shooed 5 | . . 5 . . . . . Parts Field Recycled . | . . . . . . . . Retrieved Matter . | . . . . . . . . Parts Self-Destructed . | . . . . . . . . Prevented . | . . . . . . . . Kills | -11 -10 -10 -9 -9 -9 -8 -8 ------- Run | Scr Mat Min Mat Min Exi Min Mat Combat Hostiles Destroyed 13 | . . 4 5 4 . . . Guns 12 | . . 4 5 3 . . . AOE 1 | . . . . 1 . . . Classes Destroyed 9 | . 2 5 2 . . . . Worker 1 | . . 1 . . . . . Builder 1 | . . 1 . . . . . Tunneler 1 | . . 1 . . . . . Hauler 2 | . 2 . . . . . . Recycler 1 | . . 1 . . . . . Operator 1 | . . . 1 . . . . Watcher 1 | . 1 . . . . . . Swarmer 4 | . . . 1 3 . . . Grunt 9 | . . 4 4 1 . . . Best Kill Streak 3 | . 1 2 2 3 . . . Combat Bots Only 3 | . . 2 2 3 . . . Max Kills in Single Turn 1 | . 1 1 1 1 . . . Gunslinging . | . . . . . . . . Exploded 1 | . . . . 1 . . . Melee . | . . . . . . . . Uniques/NPCs Destroyed . | . . . . . . . . Combat | -11 -10 -10 -9 -9 -9 -8 -8 -------- Run | Scr Mat Min Mat Min Exi Min Mat Damage Taken 1765 | . 111 455 386 771 . 42 . Core 510 | . 1 163 38 266 . 42 . Absorbed by Shields . | . . . . . . . . Core Remaining (%) 49 | 100 . 34 . . . 13 . Volleys Fired 106 | . 5 63 27 11 . . . Largest 2 | . 2 2 2 2 . . . Hottest 112 | . 40 112 112 112 . . . Shots Fired 152 | . 10 76 46 18 . 2 . Gun 150 | . 10 76 46 18 . . . Cannon . | . . . . . . . . Launcher 2 | . . . . . . 2 . Special . | . . . . . . . . Kinetic 77 | . 10 62 . 5 . . . Thermal 73 | . . 14 46 13 . . . Explosive 2 | . . . . . . 2 . Electromagnetic . | . . . . . . . . Robot Hit Streak 12 | . 5 12 7 4 . 1 . Robot Miss Streak 7 | . 1 5 2 7 . 6 . Penetration Max . | . . . . . . . . Secondary Targets 1 | . . . 1 . . . . Max Gunslinging Chain 1 | . . . 1 . . . . Shots Hit Robots 97 | . 8 53 30 5 . 1 . Core Hits 43 | . 6 20 11 5 . 1 . Critical Hits 1 | . 1 . . . . . . Critical Kills 1 | . 1 . . . . . . Critical Parts Destroyed . | . . . . . . . . Melee Attacks . | . . . . . . . . Impact . | . . . . . . . . Slashing . | . . . . . . . . Piercing . | . . . . . . . . Sneak Attacks . | . . . . . . . . Combat Hostiles . | . . . . . . . . Follow-up Attacks . | . . . . . . . . Damage Inflicted 1139 | . 64 490 416 83 . 86 . Guns 1034 | . 62 490 416 66 . . . Cannons . | . . . . . . . . Explosions 86 | . . . . . . 86 . Melee . | . . . . . . . . Ramming 19 | . 2 . . 17 . . . Kinetic 415 | . 62 345 . 8 . . . Thermal 619 | . . 145 416 58 . . . Explosive 86 | . . . . . . 86 . Electromagnetic . | . . . . . . . . Impact . | . . . . . . . . Slashing . | . . . . . . . . Piercing . | . . . . . . . . Highest Corruption 7 | . 1 1 . 7 7 7 . Average Corruption 3 | . 1 1 . 2 7 7 . Corruption Purged . | . . . . . . . . Effects 23 | . . 2 . 3 6 12 . Message Errors 9 | . . 2 . 1 2 4 . Matter Fused 4 | . . . . 1 2 1 . Heat Flow Errors 2 | . . . . . . 2 . Energy Discharges 3 | . . . . . . 3 . Data Loss (minor) 1 | . . . . . 1 . . Data Loss (major) 1 | . . . . . 1 . . Misfires 2 | . . . . . . 2 . Targeting Errors 1 | . . . . 1 . . . Overload Shots . | . . . . . . . . Overflow Damage . | . . . . . . . . Projectiles . | . . . . . . . . Explosions . | . . . . . . . . Melee . | . . . . . . . . Knockbacks . | . . . . . . . . Impact . | . . . . . . . . Kinetic . | . . . . . . . . Secondary . | . . . . . . . . Self-Inflicted Damage 52 | . 1 . . 8 . 43 . Shots 1 | . . . . . . 1 . Rammed 3 | . 2 . . 1 . . . Targets Rammed 3 | . 2 . . 1 . . . Kicked . | . . . . . . . . Crushed . | . . . . . . . . Highest Temperature 371 | . 6 228 371 . . 269 . Average Temperature 112 | . 6 74 144 . . 132 . Received Heat Transfer 492 | . 60 249 168 15 . . . Siege Activations . | . . . . . . . . Robots Corrupted . | . . . . . . . . Combat Hostiles . | . . . . . . . . Parts Fried 1 | . . . . 1 . . . Impact Corruptions . | . . . . . . . . Robots Melted . | . . . . . . . . Combat Hostiles . | . . . . . . . . Parts Melted 3 | . . 1 2 . . . . Heat Transferred 1591 | . . 370 1073 148 . . . Parts Sabotaged . | . . . . . . . . Parts Stolen . | . . . . . . . . Parts Stripped . | . . . . . . . . Power Chain Reactions . | . . . . . . . . Missiles Intercepted . | . . . . . . . . Alert | -11 -10 -10 -9 -9 -9 -8 -8 ------- Run | Scr Mat Min Mat Min Exi Min Mat Peak Influence 201 | . 60 123 170 201 . 17 6 Initial 66 | . . 23 . 66 . . 6 Average 48 | . 23 47 65 142 . 1 6 Maximum Alert Level 1 | . . . . 1 . . . Low Security (%) 99 | 100 100 100 100 95 . 100 100 Level 1 . | . . . . 4 . . . Level 2 . | . . . . . . . . Level 3 . | . . . . . . . . Level 4 . | . . . . . . . . Level 5 . | . . . . . . . . High Security . | . . . . . . . . Max Security . | . . . . . . . . Squads Dispatched 4 | . 1 . 3 . . . . Investigation 2 | . 1 . 1 . . . . Extermination . | . . . . . . . . Reinforcement 2 | . . . 2 . . . . Assault . | . . . . . . . . Garrison . | . . . . . . . . Intercept . | . . . . . . . . Construction Impeded . | . . . . . . . . Haulers Reinforced . | . . . . . . . . Stealth | -11 -10 -10 -9 -9 -9 -8 -8 --------- Run | Scr Mat Min Mat Min Exi Min Mat Distress Signals . | . . . . . . . . Communications Jammed . | . . . . . . . . Distress Signals . | . . . . . . . . Times Spotted 35 | . 6 4 11 14 . . . Peak Tracking Total 9 | . 3 2 5 9 . . . Tactical Retreats 5 | . . . 3 2 . . . Traps | -11 -10 -10 -9 -9 -9 -8 -8 ------- Run | Scr Mat Min Mat Min Exi Min Mat Traps Triggered 2 | . 1 . 1 . . . . Indirectly . | . . . . . . . . Trap Hack Attempts . | . . . . . . . . Triggered . | . . . . . . . . Disarmed . | . . . . . . . . Reprogrammed . | . . . . . . . . Reused . | . . . . . . . . Traps Extracted . | . . . . . . . . Installed . | . . . . . . . . Triggered 1 | . . . . 1 . . . Machines | -11 -10 -10 -9 -9 -9 -8 -8 ---------- Run | Scr Mat Min Mat Min Exi Min Mat Machines Disabled . | . . . . . . . . Max in Single Turn . | . . . . . . . . Machines Sabotaged . | . . . . . . . . Garrisons Compromised . | . . . . . . . . Overloaded Fab Kills . | . . . . . . . . Fab Network Shutdowns . | . . . . . . . . Hacking | -11 -10 -10 -9 -9 -9 -8 -8 --------- Run | Scr Mat Min Mat Min Exi Min Mat Machines Accessed 7 | . 5 . . . 1 . 1 Terminals 6 | . 5 . . . . . 1 Fabricators . | . . . . . . . . Repair Stations . | . . . . . . . . Recycling Units . | . . . . . . . . Scanalyzers . | . . . . . . . . Garrison Access . | . . . . . . . . Total Hacks 14 | . 12 . . . 1 . 1 Successful 8 | . 6 . . . 1 . 1 Failed 6 | . 6 . . . . . . Catastrophic 1 | . 1 . . . . . . Database Lockouts . | . . . . . . . . Manual 11 | . 9 . . . 1 . 1 Terminals 13 | . 12 . . . . . 1 Fabricators . | . . . . . . . . Repair Stations . | . . . . . . . . Recycling Units . | . . . . . . . . Scanalyzers . | . . . . . . . . Garrison Access . | . . . . . . . . Terminal Hacks 1 | . . . . . 1 . . EX-Prototype ID Bank 1 | . . . . . 1 . . Fabricator Hacks . | . . . . . . . . Repair Station Hacks . | . . . . . . . . Recycling Unit Hacks . | . . . . . . . . Scanalyzer . | . . . . . . . . Garrison Access Hacks . | . . . . . . . . Unauthorized Hacks 7 | . 6 . . . . . 1 Terminals 7 | . 6 . . . . . 1 Track 4 | . 3 . . . . . 1 Botnet 3 | . 3 . . . . . . Fabricators . | . . . . . . . . Repair Stations . | . . . . . . . . Recycling Units . | . . . . . . . . Scanalyzers . | . . . . . . . . Garrison Access . | . . . . . . . . Data Cores Recovered . | . . . . . . . . Used . | . . . . . . . . Hacking Detections 3 | . 3 . . . . . . Full Trace Events 1 | . 1 . . . . . . Feedback Events 1 | . 1 . . . . . . Corruption 1 | . 1 . . . . . . Feedback Blocked . | . . . . . . . . Robot Schematics Acquired . | . . . . . . . . Robots Built . | . . . . . . . . Matter . | . . . . . . . . Time . | . . . . . . . . Total Robot Build Rating . | . . . . . . . . Part Schematics Acquired . | . . . . . . . . Parts Built . | . . . . . . . . Matter . | . . . . . . . . Time . | . . . . . . . . Total Part Build Rating . | . . . . . . . . Parts Repaired . | . . . . . . . . Time . | . . . . . . . . Parts Recycled . | . . . . . . . . Recycled Matter . | . . . . . . . . Retrieved Matter . | . . . . . . . . Retrieved Components . | . . . . . . . . Parts Scanalyzed . | . . . . . . . . Part Schematics Acquired . | . . . . . . . . Parts Damaged . | . . . . . . . . Bothacking | -11 -10 -10 -9 -9 -9 -8 -8 ------------ Run | Scr Mat Min Mat Min Exi Min Mat Used RIF Installer . | . . . . . . . . Robots Hacked . | . . . . . . . . Non-combat . | . . . . . . . . Combat . | . . . . . . . . Robot Hacks Applied . | . . . . . . . . Relay Couplers Released . | . . . . . . . . Robots Rewired . | . . . . . . . . Allies Hacked . | . . . . . . . . Hacks Repelled . | . . . . . . . . Allies | -11 -10 -10 -9 -9 -9 -8 -8 -------- Run | Scr Mat Min Mat Min Exi Min Mat Total Allies 3 | . . . . 3 . . . Largest Group 3 | . . . . 3 . . . Highest-Rated Group 40 | . . . . 40 . . . Highest-Rated Ally 16 | . . . . 16 . . . Total Orders . | . . . . . . . . Ally Attacks 10 | . . . . 10 . . . Total Damage 117 | . . . . 117 . . . Kills 3 | . . . . 3 . . . Allies Corrupted . | . . . . . . . . Allies Melted . | . . . . . . . . Intel | -11 -10 -10 -9 -9 -9 -8 -8 ------- Run | Scr Mat Min Mat Min Exi Min Mat Robot Analysis Total . | . . . . . . . . Derelict Logs Recovered 3 | . . 1 . 2 . . . Drone Launches . | . . . . . . . . Drone Recoveries . | . . . . . . . . Exploration | -11 -10 -10 -9 -9 -9 -8 -8 ------------- Run | Scr Mat Min Mat Min Exi Min Mat Turns Passed 2173 | 48 280 537 302 288 234 377 107 Spaces Moved 1519 | 37 211 238 175 245 291 256 66 Core 729 | 6 . . . 110 291 256 66 Treads . | . . . . . . . . Legs 790 | 31 211 238 175 135 . . . Wheels . | . . . . . . . . Hover . | . . . . . . . . Flight . | . . . . . . . . Fastest Speed 50 | 50 120 120 120 50 50 100 150 Average Speed 114 | 108 120 120 120 99 79 144 150 Slowest Speed 150 | 120 120 120 120 150 100 150 150 Overloaded Moves . | . . . . . . . . Propulsion Burnouts . | . . . . . . . . Robots Hopped . | . . . . . . . . Cave-ins Triggered . | . . . . . . . . Exploration Rate (%) 39 | 3 48 57 15 54 69 64 5 Regions Visited 7 Branch Regions 4 Pre-discovered Areas 2 | . . 1 . 1 . . . Known Exits Taken 1 | . . . . 1 . . . Unknown Exits Taken 6 | 1 1 1 1 . 1 1 . Scrap Searched 2 | . . . . 1 . 1 . Spaces Dug . | . . . . . . . . Terrain Destroyed 19 | . . . . . . 19 . Melee . | . . . . . . . . Projectile . | . . . . . . . . AOE 19 | . . . . . . 19 . Terrain Rammed . | . . . . . . . . Walls Destroyed . | . . . . . . . . Machines Disabled . | . . . . . . . . Actions | -11 -10 -10 -9 -9 -9 -8 -8 --------- Run | Scr Mat Min Mat Min Exi Min Mat Total 1818 | 42 227 426 220 275 292 263 73 Wait 125 | . . 113 . 1 . 6 5 Move 1512 | 36 210 237 174 244 290 255 66 Hop . | . . . . . . . . Pick Up 12 | . 6 2 2 . 1 . 1 Fast Attach 20 | 6 4 1 3 2 1 2 1 Attach 5 | . . 1 3 1 . . . Detach . | . . . . . . . . Swap 15 | . . 5 6 4 . . . Drop 20 | . . 4 5 11 . . . Fire 106 | . 5 63 27 11 . . . Melee . | . . . . . . . . Ram 1 | . . . . 1 . . . Kick 2 | . 2 . . . . . . Crush . | . . . . . . . . Escape Stasis . | . . . . . . . . Rewire . | . . . . . . . . Trap . | . . . . . . . . Miscellaneous . | . . . . . . . . Route ------- -11/Scrapyard -10/Materials (discovered 2 exits: [*Mat] / [*Min]) -10/Mines -9/Materials -9/Mines (discovered 2 exits: *Mat / *Exi) -9/Exiles -8/Mines -8/Materials History --------- Turn | Location | Event 4 | -11/Scrapyard | Discovered new exit (range 16) 49 | -11/Scrapyard | Entered Materials 219 | -10/Materials | Discovered new exit (range 3) 296 | -10/Materials | Discovered new exit (range 16) 317 | -10/Materials | Build established: Mutant 329 | -10/Materials | Entered Mines 609 | -10/Mines | Discovered new exit (range 14) 685 | -10/Mines | Core integrity fell below 50% 726 | -10/Mines | Learned location of Zion (-6) 866 | -10/Mines | Entered Materials 866 | -9/Materials | Evolved 2 slots: Power x1, Utility x1 1021 | -9/Materials | Lost 3 parts (1u2w) 1027 | -9/Materials | Discovered new exit (range 9) 1168 | -9/Materials | Entered Mines 1223 | -9/Mines | Discovered new exit (range 9) 1259 | -9/Mines | Build established: Scavenger-Mutant 1289 | -9/Mines | Assisted by bots powering up and referring to "LRC-V3" 1346 | -9/Mines | Assembled infested the area 1382 | -9/Mines | Identified exit to Exiles 1410 | -9/Mines | Core integrity fell below 50% 1454 | -9/Mines | Deemed a non-threat by the Exiles lab entrance 1456 | -9/Mines | Entered Exiles 1469 | -9/Exiles | Met 8R-AWN 1476 | -9/Exiles | Met EX-HEX 1491 | -9/Exiles | Met EX-BIN 1498 | -9/Exiles | Aligned with FarCom system 1499 | -9/Exiles | Given EX-Vault access code 1512 | -9/Exiles | Opened EX-Vault 1515 | -9/Exiles | Found Lightpack 2.0 1539 | -9/Exiles | Warned to stay clear of 0b10 Research branches 1575 | -9/Exiles | Met EX-DEC 1682 | -9/Exiles | Discovered new exit (range 10) 1690 | -9/Exiles | Left Exiles lab with Lightpack 2.0 1690 | -9/Exiles | Entered Mines 1797 | -8/Mines | Build established: Hauler-Mutant 1991 | -8/Mines | Discovered new exit (range 3) 2062 | -8/Mines | Core integrity fell below 20% 2067 | -8/Mines | Entered Materials 2067 | -8/Materials | Evolved 2 slots: Propulsion x1, Utility x1 2174 | -8/Materials | Self-destructed Last Messages --------------- 01991_ EXIT=FOUND 01999_ System corrupted: Heat flow error (+297). 02009_ K-01 Serf collects debris. 02042_ System corrupted: Heat flow error (+246). 02045_ K-01 Serf collects debris. 02061_ System corrupted: FCS attempts to trigger Mni. Grenade Launcher. 02061_ System corrupted: Mni. Grenade Launcher misfires. 02067_ The unstable cave ceiling collapses. PARAMETERS=PROPULSION_1,UTILITY_1 LOCATION=UNKNOWN GOAL=ESCAPE 02067_ Receiving FarCom transmissions... 02073_ Acquired Visual Processing Unit. 02078_ Connecting with Terminal... 02078_ Current location identified: Materials >>Trojan(Track) Trojan loaded successfully. Testing... Tracking enabled and active. 02101_ Acquired Adv. Sensor Array. Map ----- +----------------------------------------------------+ | ?????????????????????????????????????????????????? | | ?????????????????????????????????????????????????? | | ?????????????????????????????????????????????????? | | ?????????????????????????????????????????????????? | | ?????????????????????????????????????????????????? | | ?????????????????????????????????????????????????? | | ?????????????????????????????????????????????????? | | ?????????????????????????????????????????????????? | | ?????????????????????????????????????????????????? | | ?????????????????????????????????????????????????? | | ???????????##????????????????????????????????????? | | ???????????? ???????????????????????????????????? | | ???????????? ?Y?????????????????????????????????? | | ????????????? ???????????????????????????????????? | | ????????????? ???????????o ?????????????????????? | | ?????????????# ???????????? ?????????????????????? | | ?????????????# ??????????? #????????????????????? | | ?????????????# ??????????? #????????????????????? | | ?????????????# ??????????? #????????????????????? | | ?????????????# ?????????? #????????????????????? | | ?????????????# ?????????? #????????????????????? | | ????????????## #????????? #????????????????????? | | ????????????# ######### #????????????????????? | | ????????????# #????????????????????? | | ????????????# #????????????????????? | | ????????????# @ #????????????????????? | | ????????????# ####### #????????????????????? | | ????????????######??????# #????????????????????? | | ????????????????????????# #????????????????????? | | ????????????????????????# ########?????????????? | | ?????????????????######## # !#?????????????? | | ?????????????????# # # #?????????????? | | ?????????????????#"" ! # # """" #?????????????? | | ?????????????????#"T ! + + """" #?????????????? | | ?????????????????#"" # # """" #?????????????? | | ?????????????????# # # #?????????????? | | ?????????????????# # ########?????????????? | | ?????????????????############????????????????????? | | ?????????????????????????????????????????????????? | | ?????????????????????????????????????????????????? | | ?????????????????????????????????????????????????? | | ?????????????????????????????????????????????????? | | ?????????????????????????????????????????????????? | | ?????????????????????????????????????????????????? | | ?????????????????????????????????????????????????? | | ?????????????????????????????????????????????????? | | ?????????????????????????????????????????????????? | | ?????????????????????????????????????????????????? | | | | | +----------------------------------------------------+ Best States ------------- Heat Dissipation 48 Energy Generation 15 Energy Capacity 275 Matter Stores 300 Matter Capacity 300 Sight Range 18 Terrain Scan Density 10 Propulsion Shielding 33 Evasion (%) 50 Item Schematics ----------------- None Robot Schematics ------------------ None Fabricated ------------ Nothing Alien Tech Used ----------------- None Achievements -------------- None Challenges ------------ None Game ------ Seed VariableSkeletonMapper Manual? 0 Play Time 00:12:05 Cumulative 245.7 hours Start 2021.12.08 @ 21:01:59 End 2021.12.08 @ 21:14:39 Sessions 1 Manual Loads 0 Difficulty Rogue Special Mode None Game No. 464 Rogue 309 Adventurer 148 Explorer 7 Win Type - Total 10 Types 8/0/1/1/0/0/0/0/0 Lore% 75 Gallery% 87 Achievement% 65 Wizard Run 0 Options --------- ASCII 0 Keyboard 0 Movement Numpad Keybinds 0 Fullscreen 1 Font 18/SmallcapsGlow Map View 76x50 Tactical HUD 1 Map Filters NONE Filters NONE Steam 1 RUN: 7658d8e7-1aed-44f5-849b-129c09c05998